bitfinex-derivatives/quotes_ETHF0:USTF0_20240924
["timestamp","ask_amount","ask_price","bid_price","bid_amount"]
[1727186847679,3.2078,2628.1,2627.7,3.95807014]
[1727186847884,3.2078,2628.1,2627.5,3.2078]
[1727186847885,3.2078,2628.1,2627.5,7.16587014]
[1727186848076,3.2078,2628.1,2627.5,3.2078]
[1727186848385,3.2078,2628.4,2627.7,3.95807014]
[1727186848690,3.58824,2628.4,2627.6,3.95807014]
[1727186848888,3.2078,2628.4,2627.8,4.38621394]
[1727186849184,0.38046,2628.3,2627.6,4.38621394]
[1727186849377,0.38048,2628.2,2627.9,4.14445247]
[1727186849684,0.95089,2629.0,2627.7,4.14445247]
[1727186849685,3.2078,2628.1,2627.7,4.14445247]
[1727186849991,0.38054,2627.7,2627.5,3.2078]
[1727186850484,4.18615,2627.6,2627.5,3.2078]
[1727186850684,0.38058,2627.4,2626.9,8.7578]
[1727186850882,3.2078,2627.5,2627.1,0.61683396]
[1727186851086,3.2078,2627.5,2627.2,0.61683396]
[1727186851286,0.38058,2627.4,2627.3,0.61683396]
[1727186851482,0.38062,2627.1,2627.0,0.61683396]
[1727186851783,3.2078,2627.5,2627.0,0.61683396]
[1727186852087,0.38059,2627.3,2627.2,0.61683396]
[1727186852384,0.95138,2627.7,2627.2,0.61683396]
[1727186852385,3.2078,2627.8,2627.3,0.61683396]
[1727186852578,3.2078,2627.8,2627.4,0.61683396]
[1727186852781,0.38059,2627.4,2627.3,0.61683396]
[1727186852999,0.38052,2627.8,2627.4,0.61683396]
[1727186853189,0.38049,2628.0,2627.7,0.61683396]
[1727186853384,0.38053,2627.8,2627.5,7.04533635]
[1727186853582,0.38055,2627.6,2627.5,3.2078]
[1727186854081,3.83,2627.5,2627.2,3.2078]
[1727186854284,3.2078,2626.8,2624.9,3.2078]
[1727186854487,4.15986,2625.8,2625.0,3.2078]
[1727186854787,2.94695962,2625.8,2625.1,3.2078]
[1727186855082,0.38085,2625.6,2625.1,3.2078]
[1727186855283,0.38086,2625.6,2625.2,4.0143085]
[1727186855484,0.38088,2625.3,2625.2,4.0143085]
[1727186855678,3.2078,2625.4,2624.8,3.2078]
[1727186855879,1.073,2625.8,2625.1,3.2078]
[1727186856085,3.2078,2625.7,2625.2,4.0143085]
[1727186856386,3.2078,2625.7,2624.4,15.38426915]
[1727186856387,0.38088,2625.4,2624.7,3.58877]
[1727186856590,0.38088,2625.4,2625.0,3.2078]
[1727186856787,0.38088,2625.4,2625.0,4.26839012]
[1727186857086,3.2078,2625.7,2625.0,3.2078]
[1727186857293,0.38088,2625.4,2625.1,4.26839012]
[1727186857491,3.2078,2625.7,2625.1,4.26839012]
[1727186857683,0.38089,2625.3,2625.1,4.26839012]
[1727186858281,3.2078,2625.7,2625.0,3.2078]
[1727186858486,3.2078,2625.7,2625.1,0.3809]
[1727186858687,3.2078,2625.7,2625.2,3.32082164]
[1727186858688,1.3331,2625.3,2625.2,3.32082164]
[1727186858993,1.3331,2625.3,2624.3,3.2078]
[1727186858994,0.38099,2624.6,2624.3,3.2078]
[1727186859186,3.2078,2625.0,2624.3,3.2078]
[1727186859387,0.381,2624.5,2624.4,4.28113695]
[1727186859893,0.381,2624.6,2624.0,6.9078]
[1727186860088,3.2078,2624.7,2624.0,6.9078]
[1727186860284,3.2078,2624.7,2624.1,4.0882083]
[1727186860285,0.38101,2624.5,2624.1,4.0882083]
[1727186860483,0.38099,2624.6,2624.1,4.0882083]
[1727186860691,3.2078,2624.7,2624.1,4.0882083]
[1727186860990,0.95219,2625.4,2624.1,4.0882083]
[1727186860991,0.381,2624.6,2624.1,4.0882083]
[1727186861290,3.2078,2624.9,2624.1,4.0882083]
[1727186861781,0.38099,2624.6,2624.1,4.0882083]
[1727186861986,0.38102,2624.5,2624.0,6.9078]
[1727186862297,3.2078,2624.9,2624.1,4.1924755]
[1727186862298,0.38102,2624.4,2624.1,4.1924755]
[1727186862591,3.2078,2624.9,2624.1,4.1924755]
[1727186862794,0.38099,2624.7,2624.1,4.1924755]
[1727186862988,4.16017,2624.9,2624.1,4.1924755]
[1727186863293,0.38099,2624.6,2624.1,4.1924755]
[1727186863489,0.38101,2624.5,2624.1,4.1924755]
[1727186863683,0.95245,2624.7,2624.1,4.1924755]
[1727186863885,3.2078,2624.6,2624.1,7.8924755]
[1727186864190,1.073,2624.6,2624.1,3.7]
[1727186864388,1.33361,2624.3,2624.2,4.34961291]
[1727186864589,3.2078,2624.5,2623.7,3.2078]
[1727186864884,0.38109,2623.9,2623.8,4.34961291]
[1727186865087,0.38117,2623.4,2623.0,5.64719206]
[1727186865288,1.073,2623.6,2623.2,3.2078]
[1727186865495,1.073,2623.6,2623.4,4.15666915]
[1727186865688,1.073,2623.6,2623.5,6.9078]
[1727186865986,4.16039,2624.3,2623.5,22.7166929]
[1727186865987,0.297,2624.3,2623.5,22.7166929]
[1727186866193,0.297,2624.3,2623.8,3.2078]
[1727186866787,0.38107,2624.1,2623.5,0.38114]
[1727186866991,0.297,2624.3,2623.6,3.2078]
[1727186867184,0.297,2624.3,2623.9,4.02426811]
[1727186867385,0.297,2624.3,2623.6,7.23206811]
[1727186867386,1.24959,2624.3,2623.6,3.2078]
[1727186867785,0.38108,2624.0,2623.7,4.01991752]
[1727186868091,0.297,2624.3,2623.7,4.01991752]
[1727186868290,1.24959,2624.3,2623.7,4.01991752]
[1727186868592,0.38105,2624.2,2623.7,4.01991752]
[1727186868790,0.297,2624.3,2623.7,4.01991752]
[1727186869190,0.38108,2624.0,2623.7,4.01991752]
[1727186869396,0.3811,2623.9,2623.7,4.01991752]
[1727186869585,0.38109,2623.9,2623.7,4.01991752]
[1727186870101,0.67808,2624.0,2623.7,4.01991752]
[1727186870394,0.3811,2623.9,2623.7,4.01991752]
[1727186870691,0.38109,2623.9,2623.7,4.01991752]
[1727186870897,0.297,2624.0,2623.7,4.01991752]
[1727186871288,0.3811,2623.8,2623.7,4.01991752]
[1727186871485,0.38112,2623.7,2623.6,3.2078]
[1727186871691,0.38112,2623.7,2623.2,0.98560781]
[1727186871892,0.3812,2623.2,2623.0,8.85499206]
[1727186872089,0.297,2623.4,2623.0,8.85499206]
[1727186872289,0.38119,2623.2,2623.1,4.34563351]
[1727186872891,7.0198,2623.2,2623.0,5.64719206]
[1727186873096,0.297,2623.4,2623.0,5.64719206]
[1727186873289,0.297,2623.4,2623.1,4.04499908]
[1727186873593,0.297,2623.4,2623.3,3.58898]
[1727186873794,0.297,2623.4,2623.3,7.40098]
[1727186874090,0.297,2623.4,2623.3,11.44597908]
[1727186874292,3.2078,2624.1,2623.3,7.25279908]
[1727186874293,2.93259179,2624.1,2623.3,7.25279908]
[1727186874697,3.88528179,2624.1,2623.3,7.25279908]
[1727186874989,3.88528179,2624.1,2623.4,0.38116]
[1727186875195,3.88528179,2624.1,2623.3,7.25279908]
[1727186875196,2.93259179,2624.1,2623.3,7.25279908]
[1727186875504,3.2078,2624.6,2623.8,3.2078]
[1727186875991,0.38107,2624.0,2623.9,4.38039395]
[1727186876191,0.76907,2624.0,2623.9,4.38039395]
[1727186876506,0.388,2624.0,2623.6,3.2078]
[1727186876692,0.38111,2623.8,2623.6,3.2078]
[1727186876888,0.3811,2623.9,2623.7,4.30254943]
[1727186877094,0.388,2624.0,2623.7,4.30254943]
[1727186877594,0.38108,2624.0,2623.7,4.30254943]
[1727186877798,0.388,2624.1,2623.8,0.3811]
[1727186877987,0.38109,2623.9,2623.7,4.30254943]
[1727186878304,0.38107,2624.0,2623.9,4.0356601]
[1727186878490,0.38111,2623.8,2623.6,3.2078]
[1727186878690,0.388,2624.1,2623.7,4.39234545]
[1727186878990,0.388,2624.1,2623.6,3.2078]
[1727186878991,0.38111,2623.8,2623.6,3.2078]
[1727186879194,0.388,2624.1,2623.6,3.2078]
[1727186879495,0.38108,2624.0,2623.7,4.25137907]
[1727186879701,0.388,2624.1,2623.7,4.25137907]
[1727186879902,0.388,2624.1,2624.0,3.2078]
[1727186880097,0.388,2624.1,2623.7,4.25137907]
[1727186880098,0.388,2624.1,2623.7,7.45917907]
[1727186880291,0.388,2624.1,2623.7,3.58891]
[1727186880492,0.388,2624.1,2623.8,4.12444649]
[1727186880999,0.38109,2623.9,2623.8,4.12444649]
[1727186881400,0.388,2624.1,2623.7,3.2078]
[1727186881700,0.38116,2623.4,2623.3,3.2078]
[1727186881894,0.38116,2623.4,2623.0,5.64719206]
[1727186881895,0.38119,2623.2,2623.0,5.64719206]
[1727186882090,0.388,2623.4,2623.1,4.60109642]
[1727186882091,0.76917,2623.4,2623.1,4.60109642]
[1727186882286,0.388,2623.4,2623.3,3.58898]
[1727186882492,0.388,2623.8,2623.7,0.38112]
[1727186882687,0.388,2624.3,2624.2,0.95262]
[1727186882895,3.2078,2625.8,2624.7,0.95241]
[1727186883094,0.95188,2626.3,2625.3,0.38088]
[1727186883095,3.2078,2626.2,2625.3,0.38088]
[1727186883298,3.2078,2626.6,2625.5,3.2078]
[1727186883497,3.2078,2626.6,2625.9,0.38079]
[1727186883498,0.38071,2626.5,2625.9,0.38079]
[1727186883699,3.6786,2627.4,2626.4,3.2078]
[1727186884204,0.38065,2627.0,2626.5,4.0547]
[1727186884393,3.2078,2627.4,2626.5,7.2625]
[1727186884799,0.38066,2626.9,2626.5,7.2625]
[1727186885000,0.95144,2627.5,2626.5,3.2078]
[1727186885001,0.38067,2626.8,2626.5,3.2078]
[1727186885196,0.38066,2626.9,2626.2,3.2078]
[1727186885399,3.7117,2627.9,2626.8,3.2078]
[1727186885595,3.7117,2627.9,2627.2,3.2078]
[1727186885800,0.3805,2628.0,2627.5,3.2078]
[1727186886100,3.6959,2628.3,2627.5,3.2078]
[1727186886101,3.58825,2628.3,2627.5,3.2078]
[1727186886299,0.38047,2628.2,2627.6,0.38397532]
[1727186886493,3.2078,2628.3,2627.8,3.2078]
[1727186886698,3.2078,2628.6,2627.8,3.2078]
[1727186887102,3.2078,2628.6,2627.9,4.0504]
[1727186887410,0.5039,2629.0,2628.1,3.2078]
[1727186887706,0.38038,2628.8,2628.1,3.2078]
[1727186887904,0.38037,2628.9,2628.2,4.38388675]
[1727186888206,0.5039,2629.0,2628.2,4.38388675]
[1727186888207,0.88425,2629.0,2628.2,4.38388675]
[1727186888501,3.2078,2629.1,2628.2,4.38388675]
[1727186888706,0.38036,2629.0,2628.2,4.38388675]
[1727186889010,3.58814,2629.1,2628.2,4.38388675]
[1727186889205,0.0376832,2629.3,2628.5,3.2078]
[1727186889596,3.58814,2629.1,2628.6,4.24288092]
[1727186889797,0.38035,2629.0,2628.6,4.24288092]
[1727186890002,0.0376832,2629.3,2628.6,4.24288092]
[1727186890003,0.38032,2629.2,2628.6,4.24288092]
[1727186890311,0.0376832,2629.3,2628.6,4.24288092]
[1727186890509,0.0376832,2629.3,2628.9,0.38036]
[1727186890699,0.0376832,2629.3,2628.8,3.58817]
[1727186890903,0.0376832,2629.3,2629.0,4.14092435]
[1727186891103,0.0376832,2629.3,2629.1,3.2078]
[1727186891406,0.0376832,2629.3,2629.1,4.24597719]
[1727186891607,0.38032,2629.2,2628.8,3.2078]
[1727186891803,0.0376832,2629.3,2628.5,3.7]
[1727186892009,0.4179932,2629.3,2628.9,4.24597719]
[1727186892208,0.0376832,2629.3,2628.7,7.45377719]
[1727186892405,0.0376832,2629.3,2628.7,3.2078]
[1727186892605,0.38033,2629.1,2629.0,4.38236848]
[1727186892813,0.0376832,2629.3,2628.8,4.38236848]
[1727186893010,3.2078,2629.2,2628.6,4.21260125]
[1727186893211,0.0376832,2629.3,2628.9,4.76272848]
[1727186893397,0.0376832,2629.3,2628.9,0.38036]
[1727186893601,0.0376832,2629.3,2629.2,0.38032]
[1727186893898,0.0376832,2629.3,2629.0,4.25551039]
[1727186894211,0.38034,2629.1,2629.0,4.25551039]
[1727186894599,3.804,2629.1,2628.6,3.2078]
[1727186894800,0.38034,2629.1,2628.6,3.58821]
[1727186894997,0.0376832,2629.3,2629.0,0.38034]
[1727186895206,0.0376832,2629.3,2628.9,3.2078]
[1727186895406,0.0376832,2629.3,2629.1,3.67082804]
[1727186895601,0.0376832,2629.3,2629.2,3.2078]
[1727186895801,0.0376832,2629.3,2629.2,3.58812]
[1727186896003,0.0376832,2629.3,2629.2,11.51361166]
[1727186896409,0.0376832,2629.3,2629.2,17.51361166]
[1727186896912,0.0376832,2629.3,2629.2,21.21361166]
[1727186897106,3.2078,2629.9,2629.2,21.21361166]
[1727186897107,0.3802,2630.0,2629.2,20.83329166]
[1727186897306,3.2078,2629.9,2629.2,11.03009166]
[1727186897510,0.38025,2629.7,2629.2,11.03009166]
[1727186897815,0.38024,2629.8,2629.3,0.3803]
[1727186898020,3.2078,2630.0,2629.5,0.38026]
[1727186898203,3.2078,2630.0,2629.4,4.40705379]
[1727186898406,0.38024,2629.8,2629.6,3.63489203]
[1727186898605,3.2078,2630.0,2629.3,4.50259166]
[1727186898811,3.58801,2630.0,2629.5,4.57929508]
[1727186899011,3.2078,2630.3,2629.9,0.38021]
[1727186899209,3.2078,2630.6,2629.6,7.40682508]
[1727186899412,3.2078,2630.6,2630.0,4.01719203]
[1727186899710,3.2078,2630.3,2629.7,4.41383477]
[1727186899911,0.38025,2629.8,2629.7,4.41383477]
[1727186900107,0.38029,2629.4,2629.3,3.2078]
[1727186900407,3.2078,2629.6,2628.9,3.2078]
[1727186900609,0.38031,2629.3,2628.9,3.2078]
[1727186900811,0.38036,2629.0,2628.6,4.31362697]
[1727186901013,0.38036,2629.0,2628.5,3.2078]
[1727186901014,0.38037,2628.9,2628.5,3.2078]
[1727186901315,0.38037,2628.9,2628.0,9.515]
[1727186901316,0.38044,2628.4,2628.1,3.2078]
[1727186901517,4.15876,2628.8,2627.8,3.7]
[1727186901518,0.3805,2628.0,2627.8,3.7]
[1727186901704,0.38046,2628.3,2628.1,4.07287741]
[1727186901907,0.38043,2628.5,2628.1,0.38047]
[1727186902303,0.38043,2628.5,2628.0,3.2078]
[1727186902304,0.38043,2628.5,2628.2,4.07287741]
[1727186902604,3.2078,2628.8,2628.1,4.24224734]
[1727186902605,0.95099,2628.7,2628.1,4.24224734]
[1727186902805,0.38046,2628.2,2628.1,4.24224734]
[1727186903114,3.2078,2628.4,2627.7,3.2078]
[1727186903312,0.38048,2628.2,2627.7,3.2078]
[1727186903612,3.2078,2629.0,2628.4,0.38043]
[1727186903818,3.2078,2629.0,2628.4,3.2078]
[1727186904113,3.2078,2629.0,2628.5,4.2567641]
[1727186904409,3.2078,2629.0,2628.3,4.34179473]
[1727186904603,0.38038,2628.8,2628.4,0.38044]
[1727186904808,0.38039,2628.7,2628.6,4.2567641]
[1727186905004,1.33144,2628.6,2628.5,4.0869]
[1727186905206,3.2078,2628.7,2628.2,4.34179473]
[1727186905412,3.2078,2628.7,2628.1,3.2078]
[1727186905611,0.95081,2629.2,2628.2,4.26033867]
[1727186905808,0.95081,2629.2,2628.5,3.2078]
[1727186906003,0.38037,2628.9,2628.6,0.3804]
[1727186906208,0.38037,2628.9,2628.6,4.24200476]
[1727186906420,0.95081,2629.2,2628.6,4.24200476]
[1727186906612,0.38037,2628.9,2628.6,4.24200476]
[1727186906819,0.38039,2628.8,2628.6,4.24200476]
[1727186907111,0.95084,2629.1,2628.6,4.24200476]
[1727186907312,3.2078,2629.3,2628.6,4.24200476]
[1727186907618,0.38037,2628.9,2628.6,4.24200476]
[1727186907815,0.38039,2628.7,2628.6,4.24200476]
[1727186908005,3.804,2628.8,2627.9,3.2078]
[1727186908208,0.38049,2628.0,2627.9,3.2078]
[1727186908508,3.2078,2628.6,2628.1,4.06641034]
[1727186908509,0.38045,2628.4,2628.1,4.06641034]
[1727186908712,0.38046,2628.3,2628.0,0.38049]
[1727186909014,4.53938,2628.3,2628.2,4.06641034]
[1727186909314,4.53938,2628.3,2627.5,0.38057]
[1727186909315,0.38054,2627.8,2627.5,0.38057]
[1727186909513,0.38054,2627.7,2627.4,6.02093845]
[1727186909713,0.38054,2627.7,2627.6,4.1895808]
[1727186909908,0.9512,2628.1,2627.5,4.1895808]
[1727186910108,0.38053,2627.8,2627.5,0.38056]
[1727186910307,0.38053,2627.8,2627.5,4.39534374]
[1727186910509,0.38054,2627.7,2627.5,4.01478374]
[1727186910709,0.9512,2628.1,2627.5,4.01478374]
[1727186910710,0.38055,2627.6,2627.5,4.01478374]
[1727186911123,0.38055,2627.6,2626.7,8.162]
[1727186911124,0.38071,2626.6,2626.2,3.2078]
[1727186911418,3.2078,2626.8,2626.2,3.2078]
[1727186911620,3.2078,2626.8,2626.5,4.31094243]
[1727186911621,0.3807,2626.6,2626.5,4.31094243]
[1727186911919,3.2078,2627.1,2626.3,4.31094243]
[1727186912124,3.2078,2627.1,2626.2,6.9078]
[1727186912125,3.58843,2627.1,2626.7,0.38068]
[1727186912322,0.3806,2627.3,2626.5,3.2078]
[1727186912512,3.2078,2627.5,2626.8,3.97696152]
[1727186912715,3.2078,2628.1,2627.1,3.2078]
[1727186912908,0.38053,2627.8,2627.3,0.38058]
[1727186913116,0.38051,2627.9,2627.4,3.58838]
[1727186913309,0.38053,2627.8,2627.4,7.46474514]
[1727186913509,0.38054,2627.7,2627.4,3.2078]
[1727186914017,0.95115,2628.3,2627.5,4.07767973]
[1727186914320,3.2078,2628.4,2627.5,4.07767973]
[1727186914321,0.38051,2627.9,2627.5,4.07767973]
[1727186914527,3.2078,2628.4,2627.6,0.38055]
[1727186914720,3.2078,2628.4,2627.5,4.45823973]
[1727186915023,0.38049,2628.1,2627.7,4.29706399]
[1727186915217,0.38049,2628.1,2627.6,0.38055]
[1727186915218,3.2078,2628.4,2627.6,4.29706399]
[1727186915413,3.2078,2628.4,2627.3,3.7]
[1727186915414,0.38047,2628.2,2627.8,3.58832]
[1727186915614,3.2078,2628.1,2627.8,4.18746235]
[1727186915818,0.38047,2628.2,2627.7,4.18746235]
[1727186916118,3.2078,2628.1,2627.6,4.18746235]
[1727186916419,3.2078,2628.1,2627.5,3.2078]
[1727186916420,4.15902,2628.1,2627.5,3.2078]
[1727186916617,0.38055,2627.6,2627.5,3.2078]
[1727186916813,0.95124,2628.0,2626.9,3.2078]
[1727186917015,0.3806,2627.3,2626.9,3.2078]
[1727186917214,0.38061,2627.2,2627.1,3.99524884]
[1727186917415,0.3806,2627.3,2627.0,3.99524884]
[1727186917612,3.2078,2627.5,2627.0,0.38063]
[1727186917820,3.2078,2627.5,2626.9,3.2078]
[1727186918018,0.38059,2627.4,2627.1,4.39649578]
[1727186918222,3.2078,2627.5,2627.1,0.38062]
[1727186918223,3.58837,2627.5,2627.1,0.38062]
[1727186918427,3.2078,2627.8,2627.2,3.2078]
[1727186918626,0.95115,2628.3,2627.6,0.38055]
[1727186918627,0.38052,2627.9,2627.6,0.38055]
[1727186918816,0.38052,2627.9,2627.3,6.9078]
[1727186918817,0.38049,2628.1,2627.7,0.38053]
[1727186919017,3.2078,2628.4,2627.6,0.38054]
[1727186919322,0.95106,2628.5,2627.6,0.38054]
[1727186919323,0.38051,2627.9,2627.6,0.38054]
[1727186919520,3.2078,2628.1,2627.4,12.2664131]
[1727186919719,0.38077,2626.1,2626.0,3.2078]
[1727186919920,3.2078,2627.5,2624.6,0.58105247]
[1727186919921,0.95186,2626.3,2625.1,3.2078]
[1727186920118,1.33275,2626.0,2625.9,4.20883204]
[1727186920313,1.33275,2626.0,2625.8,4.20883204]
[1727186920314,0.3808,2625.9,2624.9,0.84]
[1727186920514,3.2078,2625.7,2624.8,3.2078]
[1727186920714,0.95211,2625.6,2625.3,4.4088466]
[1727186920921,0.95211,2625.6,2625.0,0.38093]
[1727186920922,0.38087,2625.4,2625.0,0.38093]
[1727186921119,0.95211,2625.6,2625.0,0.38093]
[1727186921120,0.38089,2625.3,2625.0,0.38093]
[1727186921323,0.38088,2625.4,2625.3,4.4088466]
[1727186921530,0.38086,2625.5,2625.3,4.4088466]
[1727186921820,0.38086,2625.5,2625.1,0.38091]
[1727186922025,0.95207,2625.7,2624.8,3.2078]
[1727186922227,0.38088,2625.4,2625.3,4.37500758]
[1727186922419,0.38089,2625.3,2624.9,4.03189081]
[1727186922616,3.58866,2625.5,2624.8,3.2078]
[1727186922819,3.58866,2625.5,2625.3,4.03189081]
[1727186923019,0.38089,2625.3,2624.9,4.03189081]
[1727186923219,0.38094,2625.0,2624.8,3.2078]
[1727186923419,3.2078,2625.5,2624.8,3.2078]
[1727186923617,3.2078,2625.5,2624.9,4.1336617]
[1727186923927,0.38084,2625.7,2624.9,12.22875495]
[1727186924125,3.2078,2626.0,2625.1,3.2078]
[1727186924330,3.2078,2626.0,2625.3,0.38088]
[1727186924331,0.38083,2625.7,2625.3,0.38088]
[1727186924530,0.95192,2626.2,2625.1,3.2078]
[1727186924531,0.38081,2625.9,2625.2,4.24189723]
[1727186924729,2.28516,2625.5,2625.4,6.49513723]
[1727186924926,6.9078,2625.5,2624.1,1.46793541]
[1727186925131,11.7,2626.1,2624.3,4.24189723]
[1727186925132,3.58882,2624.4,2624.3,4.24189723]
[1727186925424,0.38111,2623.8,2623.6,2.95143505]
[1727186925627,3.2078,2623.9,2623.6,2.95143505]
[1727186925822,3.2078,2623.9,2623.5,4.11146534]
[1727186926022,3.2078,2624.3,2623.7,4.35355903]
[1727186926230,0.38105,2624.2,2623.7,4.73466903]
[1727186926531,0.38105,2624.2,2623.8,4.04850955]
[1727186926828,0.38105,2624.2,2623.7,0.99120896]
[1727186927029,3.58884,2624.3,2623.8,0.3811]
[1727186927336,3.2078,2624.8,2623.9,4.04850955]
[1727186927520,0.38102,2624.4,2623.9,0.38108]
[1727186927720,3.2078,2624.8,2624.0,4.12371442]
[1727186928040,3.2078,2624.8,2623.7,3.58891]
[1727186928041,3.2078,2624.2,2623.7,3.58891]
[1727186928225,3.58885,2624.2,2623.9,4.12371442]
[1727186928536,3.2078,2624.2,2624.1,4.22562942]
[1727186928724,3.2078,2624.2,2623.7,3.2078]
[1727186928927,3.58885,2624.2,2624.0,4.12371442]
[1727186929123,0.38106,2624.1,2623.9,4.22562942]
[1727186929425,0.38101,2624.5,2624.1,4.15557631]
[1727186929630,0.38101,2624.5,2624.0,4.53664631]
[1727186929826,0.38099,2624.6,2624.1,0.38105]
[1727186930131,3.2078,2624.5,2624.2,4.15557631]
[1727186930332,3.2078,2624.5,2623.9,3.58888]
[1727186930333,3.5888,2624.5,2623.9,3.58888]
[1727186930531,3.2078,2624.5,2624.3,4.23694508]
[1727186930833,3.2078,2624.5,2624.2,4.61798508]
[1727186931132,3.2078,2624.6,2624.4,4.23694508]
[1727186931335,3.58875,2624.9,2624.3,4.23694508]
[1727186931531,3.58875,2624.9,2624.5,4.2868701]
[1727186931532,3.2078,2624.9,2624.5,4.2868701]
[1727186931833,3.58876,2624.9,2624.4,4.23694508]
[1727186932036,0.38097,2624.8,2624.3,4.2868701]
[1727186932232,0.38097,2624.7,2624.3,4.2868701]
[1727186932539,3.2078,2624.6,2624.4,4.07156906]
[1727186932833,0.38091,2625.2,2624.4,3.2078]
[1727186933136,3.2078,2625.4,2624.5,4.45255906]
[1727186933137,3.2078,2625.1,2624.5,4.45255906]
[1727186933438,3.2078,2625.1,2624.5,7.66035906]
[1727186933439,0.38092,2625.1,2624.5,7.66035906]
[1727186933626,3.2078,2625.4,2624.5,7.27936906]
[1727186933828,0.3809,2625.2,2624.5,7.27936906]
[1727186934028,0.38092,2625.1,2624.6,0.38098]
[1727186934229,3.2078,2625.1,2624.6,0.38099]
[1727186934541,3.2078,2625.1,2624.7,4.79260027]
[1727186934834,3.2078,2624.8,2624.6,4.0201265]
[1727186935228,3.2078,2624.8,2624.5,0.38099]
[1727186935429,3.2078,2624.8,2624.7,3.48657257]
[1727186935838,3.2078,2624.8,2624.6,4.01445877]
[1727186936027,3.2078,2624.8,2624.2,3.2078]
[1727186936334,3.2078,2624.4,2624.3,4.01445877]
[1727186936724,3.2078,2624.4,2624.2,4.24314846]
[1727186936927,3.2078,2624.4,2624.3,4.01445877]
[1727186937430,3.2078,2624.4,2624.3,4.30634474]
[1727186937730,3.2078,2624.4,2624.0,3.99695278]
[1727186937935,3.2078,2624.4,2624.2,4.62418846]
[1727186938124,3.2078,2624.4,2624.3,4.30634474]
[1727186938327,3.2078,2624.7,2624.3,0.38103]
[1727186938524,3.58878,2624.7,2624.3,4.64606112]
[1727186938738,3.2078,2624.7,2624.4,0.38101]
[1727186939041,0.38099,2624.6,2624.3,4.26504112]
[1727186939230,3.2078,2624.7,2624.3,4.26504112]
[1727186939533,0.95248,2624.6,2624.0,4.26504112]
[1727186939836,3.58882,2624.4,2624.1,4.3251832]
[1727186940041,3.2078,2624.4,2624.1,4.3251832]
[1727186940337,3.2078,2624.5,2624.0,4.3251832]
[1727186940536,3.58881,2624.5,2624.2,4.3251832]
[1727186940839,3.2078,2624.5,2624.2,0.38104]
[1727186941024,4.65227,2625.2,2624.3,4.37134433]
[1727186941025,3.2078,2624.9,2624.3,4.37134433]
[1727186941230,0.38096,2624.8,2624.4,0.38101]
[1727186941433,3.2078,2624.9,2624.6,0.38098]
[1727186941630,3.2078,2624.9,2624.5,3.99996054]
[1727186941631,0.38096,2624.8,2624.5,3.99996054]
[1727186942136,3.2078,2624.9,2624.7,3.99996054]
[1727186942338,3.2078,2624.9,2624.6,4.38094054]
[1727186942634,3.2078,2624.9,2624.6,0.38099]
[1727186942835,3.58875,2624.9,2624.7,4.36082648]
[1727186943048,2.45535,2626.0,2624.7,4.36082648]
[1727186943049,0.95215,2625.5,2624.7,4.36082648]
[1727186943246,4.1599,2625.7,2624.6,7.56862648]
[1727186943539,4.3315,2626.6,2624.1,3.7]
[1727186943540,3.2078,2625.9,2624.8,15.778834]
[1727186943745,40.8,2627.3,2624.7,12.54076223]
[1727186943746,3.2078,2625.0,2624.7,12.54076223]
[1727186944033,0.38097,2624.8,2624.5,4.32383407]
[1727186944245,3.2078,2625.0,2624.2,3.2078]
[1727186944246,3.58873,2625.0,2624.8,4.32383407]
[1727186944430,3.2078,2625.4,2624.9,0.38094]
[1727186944629,3.2078,2625.4,2624.6,6.90910861]
[1727186944834,3.2078,2625.5,2625.0,4.58310209]
[1727186945036,3.2078,2625.5,2624.9,7.40998209]
[1727186945037,3.58867,2625.5,2624.9,7.40998209]
[1727186945227,3.2078,2625.5,2624.9,3.2078]
[1727186945427,3.2078,2625.5,2625.1,4.20218209]
[1727186945635,3.2078,2625.5,2625.0,4.13667198]
[1727186945838,2.6361426,2625.5,2625.2,4.13667198]
[1727186946042,0.38086,2625.5,2625.2,0.38089]
[1727186946332,0.38086,2625.5,2625.3,4.13667198]
[1727186946729,0.38087,2625.4,2625.3,4.13667198]
[1727186946927,3.58867,2625.4,2625.3,4.13667198]
[1727186947930,3.58867,2625.4,2623.5,0.012]
[1727186947931,1.33397,2623.6,2623.5,0.012]
[1727186948227,14.0468,2623.6,2622.2,3.2078]
[1727186948432,6.9078,2622.8,2622.2,3.2078]
[1727186948732,6.9078,2622.8,2621.7,0.3814]
[1727186948733,3.5891,2622.5,2621.7,0.3814]
[1727186949037,3.2078,2622.1,2621.7,4.16915788]
[1727186949251,3.2078,2621.8,2621.7,4.16915788]
[1727186949538,3.2078,2621.8,2621.2,0.38148]
[1727186949741,3.2078,2621.8,2621.0,3.2078]
[1727186950035,7.138,2622.6,2621.0,3.2078]
[1727186950036,3.2078,2622.8,2622.0,0.38135]
[1727186950239,3.7,2623.6,2622.2,3.2078]
[1727186950430,3.2078,2623.6,2622.6,3.2078]
[1727186950631,3.2078,2623.6,2622.9,0.38123]
[1727186950934,3.7,2623.9,2622.7,0.19222731]
[1727186950935,3.2078,2623.3,2622.7,0.19222731]
[1727186951135,0.3812,2623.2,2623.0,4.0728]
[1727186951442,3.2078,2623.3,2622.5,3.2078]
[1727186951631,0.38112,2623.7,2623.1,3.96712141]
[1727186951831,3.2078,2623.8,2623.0,3.2078]
[1727186952036,0.38114,2623.6,2622.5,3.2078]
[1727186952232,0.38114,2623.6,2623.2,3.96712141]
[1727186952431,0.38114,2623.6,2622.9,7.55614141]
[1727186952638,3.7,2624.0,2623.0,4.0607198]
[1727186952639,3.58895,2623.5,2623.0,4.0607198]
[1727186952833,4.08114,2623.6,2623.3,4.00293621]
[1727186953032,3.2078,2623.4,2623.0,0.38122]
[1727186953232,0.38118,2623.3,2622.8,3.2078]
[1727186953437,3.2078,2623.4,2623.1,4.0607198]